[Event "3rd Memorial Warakomska 2019"]
[Site "Suwalki"]
[Date "2019.08.07"]
[Round "4.14"]
[White "Jakubowski, Krzysztof"]
[Black "Ashwath, R.."]
[Result "1-0"]
[ECO "A00"]
[WhiteElo "2528"]
[BlackElo "2365"]
[Annotator "ChessBase"]
[PlyCount "85"]
[EventDate "2019.08.05"]
[EventType "swiss"]
[EventCountry "POL"]
[SourceTitle "playchess.com"]
[Source "ChessBase"]
[SourceQuality "1"]
[TimeControl "40/5400+30:1800+30"]

1. g3 {[%emt 0:03:48]} d5 {[%emt 0:00:34]} 2. Bg2 {[%emt 0:00:15]} Nf6 {[%emt 0:02:10]} 3. f4 {[%emt 0:01:05]} g6 {[%emt 0:01:16]} 4. Nf3 {[%emt 0:00:08]} Bg7 {[%emt 0:00:03]} 5. O-O {[%emt 0:00:08]} O-O {[%emt 0:00:07]} 6. d3 {[%emt 0:00:05]} c5 {[%emt 0:00:57]} 7. Qe1 {[%emt 0:00:38]} d4 {[%emt 0:02:35]} 8. c3 {[%emt 0:07:47]} Nc6 {[%emt 0:04:29]} 9. Na3 {[%emt 0:00:14]} Rb8 {[%emt 0:06:59]} 10. Bd2 {[%emt 0:04:34]} b6 {[%emt 0:10:47]} 11. h3 {[%emt 0:07:40]} Bb7 {[%emt 0:09:08]} 12. g4 {[%emt 0:01:49]} Nd5 {[%emt 0:04:04]} 13. Nc2 {[%emt 0:07:21]} e6 {[%emt 0:05:08]} 14. c4 {[%emt 0:07:09]} Nde7 {[%emt 0:08:16]} 15. a3 {[%emt 0:11:08]} a6 {[%emt 0:07:13]} 16. b4 {[%emt 0:01:03]} cxb4 {[%emt 0:03:19]} 17. axb4 {[%emt 0:00:15]} b5 {[%emt 0:00:10]} 18. c5 {[%emt 0:00:26]} f5 {[%emt 0:02:48]} 19. Qg3 {[%emt 0:02:55]} Nd5 {[%emt 0:03:36]} 20. h4 {[%emt 0:11:25]} Nf6 {[%emt 0:04:01]} 21. Bh3 {[%emt 0:02:35]} Qd5 {[%emt 0:07:08]} 22. Nce1 {[%emt 0:00:58]} Rbe8 {[%emt 0:02:47]} 23. Nh2 {[%emt 0:03:16]} fxg4 {[%emt 0:03:16]} 24. Nxg4 {[%emt 0:01:06]} Nh5 {[%emt 0:02:27]} 25. Qh2 {[%emt 0:03:49]} e5 {[%emt 0:00:15]} 26. f5 e4 {[%emt 0:02:22]} 27. Nh6+ {[%emt 0:06:22]} Kh8 {[%emt 0:01:22]} 28. dxe4 {[%emt 0:01:11]} Qxe4 {[%emt 0:01:07]} 29. Bg2 {[%emt 0:01:18]} Qxe2 {[%emt 0:01:00]} 30. Rf2 {[%emt 0:00:07]} d3 {[%emt 0:01:59]} 31. Rxe2 {[%emt 0:03:24]} Rxe2 {[%emt 0:01:00]} 32. Qd6 {[%emt 0:03:03]} Rxd2 {[%emt 0:01:57]} 33. Bxc6 {[%emt 0:04:49]} Bxc6 {[%emt 0:00:12]} 34. Rxa6 {[%emt 0:00:07]} Be4 {[%emt 0:01:22]} 35. Ra7 {[%emt 0:01:51]} Bxh6 {[%emt 0:00:35]} 36. Rxh7+ {[%emt 0:00:44]} Kxh7 {[%emt 0:00:42]} 37. Qxg6+ {[%emt 0:00:08]} Kh8 {[%emt 0:00:01]} 38. Qxh6+ {[%emt 0:00:11]} Kg8 {[%emt 0:00:02]} 39. Qxd2 {[%emt 0:01:05]} Rf7 {[%emt 0:01:40]} 40. Nxd3 {[%emt 0:00:00]} Rd7 {[%emt 0:00:00]} 41. Qh6 {[%emt 0:06:35]} Bxd3 {[%emt 0:07:26]} 42. Qxh5 {[%emt 0:01:13]} Rf7 {[%emt 0:00:22]} 43. f6 {[%emt 0:00:20]} 1-0

[Event "3rd Memorial Warakomska 2019"]
[Site "Suwalki"]
[Date "2019.08.07"]
[Round "4.15"]
[White "Greenfeld, Alon"]
[Black "Szpar, Milosz"]
[Result "1/2-1/2"]
[ECO "A35"]
[WhiteElo "2522"]
[BlackElo "2289"]
[Annotator "ChessBase"]
[PlyCount "71"]
[EventDate "2019.08.05"]
[EventType "swiss"]
[EventCountry "POL"]
[SourceTitle "playchess.com"]
[Source "ChessBase"]
[SourceQuality "1"]
[TimeControl "40/5400+30:1800+30"]

1. Nf3 {[%emt 0:05:15]} c5 {[%emt 0:00:19]} 2. c4 {[%emt 0:01:02]} Nf6 {[%emt 0:00:35]} 3. Nc3 {[%emt 0:00:22]} Nc6 {[%emt 0:01:14]} 4. d4 {[%emt 0:01:25]} cxd4 {[%emt 0:00:29]} 5. Nxd4 {[%emt 0:00:05]} g6 {[%emt 0:00:42]} 6. e4 {[%emt 0:01:47]} d6 {[%emt 0:00:30]} 7. Be2 {[%emt 0:01:34]} Nxd4 {[%emt 0:01:02]} 8. Qxd4 {[%emt 0:01:16]} Bg7 {[%emt 0:00:08]} 9. Be3 {[%emt 0:00:45]} O-O {[%emt 0:00:29]} 10. Qd2 {[%emt 0:00:13]} Be6 {[%emt 0:06:20]} 11. Rc1 {[%emt 0:02:42]} Qa5 {[%emt 0:01:38]} 12. f3 {[%emt 0:00:40]} Rfc8 {[%emt 0:00:53]} 13. b3 {[%emt 0:00:28]} a6 {[%emt 0:01:09]} 14. Na4 {[%emt 0:00:44]} Qxd2+ {[%emt 0:00:13]} 15. Kxd2 {[%emt 0:00:09]} Nd7 {[%emt 0:00:17]} 16. g4 {[%emt 0:00:22]} f5 {[%emt 0:00:55]} 17. exf5 {[%emt 0:09:00]} gxf5 {[%emt 0:00:07]} 18. h3 {[%emt 0:00:24]} Rf8 {[%emt 0:02:29]} 19. f4 {[%emt 0:12:02]} Rad8 {[%emt 0:01:36]} 20. Nc3 {[%emt 0:01:10]} d5 {[%emt 0:09:56]} 21. cxd5 {[%emt 0:03:07]} Nf6 {[%emt 0:05:00]} 22. Bb6 {[%emt 0:05:02]} Nxd5 {[%emt 0:13:31]} 23. Bxd8 {[%emt 0:01:58]} Rxd8 {[%emt 0:01:18]} 24. Nxd5 {[%emt 0:00:18]} Bxd5 {[%emt 0:00:34]} 25. Rh2 {[%emt 0:09:31]} Bxb3+ {[%emt 0:05:12]} 26. Ke1 {[%emt 0:00:55]} Bxa2 {[%emt 0:03:59]} 27. Bxa6 {[%emt 0:01:31]} bxa6 {[%emt 0:09:13]} 28. Rxa2 {[%emt 0:00:51]} Rd4 {[%emt 0:07:28]} 29. Ra5 {[%emt 0:31:38]} fxg4 {[%emt 0:10:45]} 30. Rc8+ {[%emt 0:01:53]} Kf7 {[%emt 0:01:21]} 31. Rf5+ {[%emt 0:00:06]} Bf6 {[%emt 0:02:37]} 32. hxg4 {[%emt 0:00:06]} e6 {[%emt 0:03:21]} 33. Rfc5 {[%emt 0:00:19]} Bh4+ {[%emt 0:02:10]} 34. Ke2 {[%emt 0:00:22]} Rxf4 {[%emt 0:01:12]} 35. g5 {[%emt 0:03:53]} Rg4 {[%emt 0:03:19]} 36. R5c7+ {[%emt 0:03:06]} 1/2-1/2

[Event "3rd Memorial Warakomska 2019"]
[Site "Suwalki"]
[Date "2019.08.07"]
[Round "4.16"]
[White "Karthik Venkataraman"]
[Black "Kubicka, Anna"]
[Result "1/2-1/2"]
[ECO "D38"]
[WhiteElo "2480"]
[BlackElo "2202"]
[Annotator "ChessBase"]
[PlyCount "75"]
[EventDate "2019.08.05"]
[EventType "swiss"]
[EventCountry "POL"]
[SourceTitle "playchess.com"]
[Source "ChessBase"]
[SourceQuality "1"]
[TimeControl "40/5400+30:1800+30"]

1. d4 {[%emt 0:00:29]} Nf6 {[%emt 0:00:00]} 2. c4 {[%emt 0:00:10]} e6 {[%emt 0:00:00]} 3. Nf3 {[%emt 0:00:05]} d5 {[%emt 0:00:00]} 4. Nc3 {[%emt 0:00:05]} Bb4 {[%emt 0:00:07]} 5. e3 {[%emt 0:00:53]} O-O {[%emt 0:00:33]} 6. Bd2 {[%emt 0:00:04]} b6 {[%emt 0:02:49]} 7. cxd5 {[%emt 0:00:29]} exd5 {[%emt 0:01:10]} 8. Bd3 {[%emt 0:00:07]} c5 {[%emt 0:07:06]} 9. a3 {[%emt 0:02:16]} Bxc3 {[%emt 0:01:05]} 10. Bxc3 {[%emt 0:00:06]} c4 {[%emt 0:05:59]} 11. Bc2 {[%emt 0:00:13]} Bg4 {[%emt 0:01:02]} 12. Qb1 {[%emt 0:02:20]} Bxf3 {[%emt 0:11:52]} 13. gxf3 {[%emt 0:00:26]} Re8 {[%emt 0:00:37]} 14. O-O {[%emt 0:05:52]} Nc6 {[%emt 0:02:47]} 15. Kh1 {[%emt 0:00:09]} Qc7 {[%emt 0:05:51]} 16. Rg1 {[%emt 0:02:53]} Ne7 {[%emt 0:07:01]} 17. Qf1 {[%emt 0:01:48]} Ng6 {[%emt 0:04:15]} 18. Qg2 {[%emt 0:03:11]} Qd7 {[%emt 0:02:46]} 19. Raf1 {[%emt 0:12:30]} Kh8 {[%emt 0:01:47]} 20. f4 {[%emt 0:00:06]} Rg8 {[%emt 0:01:53]} 21. f5 {[%emt 0:00:15]} Ne7 {[%emt 0:02:39]} 22. Qg5 {[%emt 0:03:28]} h6 {[%emt 0:04:51]} 23. Qf4 {[%emt 0:00:26]} Nh7 {[%emt 0:00:45]} 24. Rg3 {[%emt 0:03:03]} f6 {[%emt 0:00:34]} 25. f3 {[%emt 0:00:25]} Rae8 {[%emt 0:03:59]} 26. e4 {[%emt 0:01:02]} dxe4 {[%emt 0:00:44]} 27. fxe4 {[%emt 0:00:10]} Nc6 {[%emt 0:01:46]} 28. Ba4 {[%emt 0:02:00]} Ng5 {[%emt 0:01:40]} 29. d5 {[%emt 0:01:52]} Rxe4 {[%emt 0:02:10]} 30. Qd2 {[%emt 0:00:04]} Qe7 {[%emt 0:10:52]} 31. Bxc6 {[%emt 0:00:27]} Rd8 {[%emt 0:00:14]} 32. Re1 {[%emt 0:00:43]} Qd6 {[%emt 0:00:58]} 33. Rge3 {[%emt 0:01:29]} Rh4 {[%emt 0:01:14]} 34. Bb4 {[%emt 0:00:24]} Qc7 {[%emt 0:04:32]} 35. Qf2 {[%emt 0:00:15]} Rh5 {[%emt 0:06:40]} 36. Re7 {[%emt 0:01:45]} Qb8 {[%emt 0:00:04]} 37. Be8 {[%emt 0:01:44]} Nh3 {[%emt 0:05:30]} 38. Qg2 {[%emt 0:02:07]} 1/2-1/2

[Event "3rd Memorial Warakomska 2019"]
[Site "Suwalki"]
[Date "2019.08.07"]
[Round "4.17"]
[White "Sernecki, Franciszek"]
[Black "Malakhatko, Vadim"]
[Result "0-1"]
[ECO "A40"]
[WhiteElo "2275"]
[BlackElo "2462"]
[Annotator "ChessBase"]
[PlyCount "104"]
[EventDate "2019.08.05"]
[EventType "swiss"]
[EventCountry "POL"]
[SourceTitle "playchess.com"]
[Source "ChessBase"]
[SourceQuality "1"]
[TimeControl "40/5400+30:1800+30"]

1. d4 {[%emt 0:00:00]} g6 {[%emt 0:00:00]} 2. Nf3 {[%emt 0:01:24]} Bg7 {[%emt 0:00:08]} 3. c4 {[%emt 0:00:27]} d6 {[%emt 0:00:07]} 4. Nc3 {[%emt 0:00:09]} e5 {[%emt 0:01:08]} 5. dxe5 {[%emt 0:05:10]} dxe5 {[%emt 0:00:07]} 6. Qxd8+ {[%emt 0:05:29]} Kxd8 {[%emt 0:00:07]} 7. g3 {[%emt 0:06:35]} Be6 {[%emt 0:12:14]} 8. e4 {[%emt 0:13:59]} f6 {[%emt 0:00:51]} 9. Be3 {[%emt 0:04:20]} Nd7 {[%emt 0:02:40]} 10. O-O-O {[%emt 0:03:07]} c6 {[%emt 0:12:53]} 11. Nd2 {[%emt 0:13:47]} Kc7 {[%emt 0:00:20]} 12. b4 {[%emt 0:05:27]} a5 {[%emt 0:04:05]} 13. b5 {[%emt 0:02:53]} Bh6 {[%emt 0:12:31]} 14. f4 {[%emt 0:01:31]} Bg4 {[%emt 0:00:15]} 15. Be2 {[%emt 0:01:19]} Bxe2 {[%emt 0:00:07]} 16. Nxe2 {[%emt 0:00:04]} Bf8 {[%emt 0:04:25]} 17. fxe5 {[%emt 0:03:02]} fxe5 {[%emt 0:00:56]} 18. Rhf1 {[%emt 0:01:15]} Bh6 {[%emt 0:03:47]} 19. Bg1 {[%emt 0:06:53]} Ngf6 {[%emt 0:05:34]} 20. b6+ {[%emt 0:01:44]} Kd6 {[%emt 0:00:14]} 21. Kc2 {[%emt 0:01:33]} Ke6 {[%emt 0:00:34]} 22. Nc3 {[%emt 0:01:08]} Ng4 {[%emt 0:08:48]} 23. Rfe1 {[%emt 0:08:17]} a4 {[%emt 0:02:16]} 24. Nf3 {[%emt 0:05:57]} Ngf6 {[%emt 0:08:32]} 25. Rd3 {[%emt 0:05:32]} Bf8 {[%emt 0:00:21]} 26. Ng5+ {[%emt 0:00:42]} Ke7 {[%emt 0:00:05]} 27. Red1 {[%emt 0:00:46]} h6 {[%emt 0:00:08]} 28. Nf3 {[%emt 0:00:02]} Ke6 {[%emt 0:00:13]} 29. g4 {[%emt 0:00:28]} Bb4 {[%emt 0:01:43]} 30. g5 {[%emt 0:00:59]} hxg5 {[%emt 0:00:09]} 31. Nxg5+ {[%emt 0:00:09]} Ke7 {[%emt 0:00:06]} 32. Rf1 {[%emt 0:01:18]} Rhf8 {[%emt 0:01:59]} 33. Rdf3 {[%emt 0:00:32]} Bc5 {[%emt 0:01:15]} 34. Rh3 {[%emt 0:00:29]} Bxg1 {[%emt 0:00:56]} 35. Rxg1 {[%emt 0:00:01]} Nh5 {[%emt 0:03:08]} 36. Nf3 {[%emt 0:00:37]} Nf4 {[%emt 0:00:27]} 37. Rhg3 {[%emt 0:00:43]} Ra6 {[%emt 0:04:01]} 38. Nh4 {[%emt 0:00:25]} Nxb6 {[%emt 0:02:34]} 39. Rxg6 {[%emt 0:00:27]} Nxc4 {[%emt 0:02:44]} 40. Rg7+ {[%emt 0:00:00]} Kd6 {[%emt 0:00:00]} 41. Rxb7 {[%emt 0:06:07]} Kc5 {[%emt 0:03:47]} 42. Nf5 {[%emt 0:02:09]} Rd8 {[%emt 0:02:13]} 43. Rd1 {[%emt 0:00:56]} Rg8 {[%emt 0:00:43]} 44. Rc1 {[%emt 0:08:53]} Rg2+ {[%emt 0:02:41]} 45. Kb1 {[%emt 0:00:01]} Nd3 {[%emt 0:01:40]} 46. Rd1 {[%emt 0:01:23]} Nb4 {[%emt 0:01:56]} 47. Ng7 {[%emt 0:02:15]} Rb2+ {[%emt 0:04:47]} 48. Kc1 {[%emt 0:00:09]} Rc2+ {[%emt 0:00:58]} 49. Kb1 {[%emt 0:00:08]} Na3+ {[%emt 0:02:39]} 50. Ka1 {[%emt 0:00:05]} Rxc3 {[%emt 0:00:05]} 51. Kb2 {[%emt 0:00:24]} Rc2+ {[%emt 0:00:21]} 52. Kxa3 {[%emt 0:00:06]} Rxa2# {[%emt 0:00:05]} 0-1

[Event "3rd Memorial Warakomska 2019"]
[Site "Suwalki"]
[Date "2019.08.07"]
[Round "4.18"]
[White "Matviishen, Viktor"]
[Black "Zakrzewski, Marek"]
[Result "1-0"]
[ECO "B47"]
[WhiteElo "2495"]
[BlackElo "2311"]
[Annotator "ChessBase"]
[PlyCount "77"]
[EventDate "2019.08.05"]
[EventType "swiss"]
[EventCountry "POL"]
[SourceTitle "playchess.com"]
[Source "ChessBase"]
[SourceQuality "1"]
[TimeControl "40/5400+30:1800+30"]

1. e4 {[%emt 0:03:57]} c5 {[%emt 0:00:00]} 2. Nf3 {[%emt 0:00:05]} e6 {[%emt 0:00:00]} 3. d4 {[%emt 0:00:04]} cxd4 {[%emt 0:00:04]} 4. Nxd4 {[%emt 0:00:02]} Nc6 {[%emt 0:00:11]} 5. Nc3 {[%emt 0:00:09]} Qc7 {[%emt 0:00:06]} 6. Qd3 {[%emt 0:00:26]} a6 {[%emt 0:06:09]} 7. Nxc6 {[%emt 0:00:09]} bxc6 {[%emt 0:03:08]} 8. Qg3 {[%emt 0:00:14]} d6 {[%emt 0:01:23]} 9. Be2 {[%emt 0:02:09]} Nf6 {[%emt 0:02:52]} 10. O-O {[%emt 0:00:23]} a5 {[%emt 0:09:40]} 11. b3 {[%emt 0:10:08]} Ba6 {[%emt 0:12:39]} 12. Bxa6 {[%emt 0:00:06]} Rxa6 {[%emt 0:00:07]} 13. Rd1 {[%emt 0:02:06]} Ra8 {[%emt 0:13:12]} 14. Rd3 {[%emt 0:04:50]} Rd8 {[%emt 0:04:19]} 15. Be3 {[%emt 0:01:31]} h5 {[%emt 0:03:07]} 16. Bg5 {[%emt 0:03:05]} Rd7 {[%emt 0:03:33]} 17. Re1 {[%emt 0:08:18]} Be7 {[%emt 0:03:51]} 18. h3 {[%emt 0:03:09]} Kf8 {[%emt 0:08:32]} 19. Bf4 {[%emt 0:10:56]} h4 {[%emt 0:03:58]} 20. Qe3 {[%emt 0:00:56]} Qd8 {[%emt 0:03:15]} 21. Na4 {[%emt 0:01:07]} e5 {[%emt 0:07:43]} 22. Bh2 {[%emt 0:01:05]} Rh5 {[%emt 0:04:09]} 23. Nb6 {[%emt 0:08:50]} Rb7 {[%emt 0:00:08]} 24. Nc4 {[%emt 0:00:03]} Qc7 {[%emt 0:00:40]} 25. Qd2 {[%emt 0:01:34]} Rb4 {[%emt 0:02:22]} 26. a3 {[%emt 0:01:05]} Rxc4 {[%emt 0:00:14]} 27. bxc4 {[%emt 0:00:04]} Nd7 {[%emt 0:00:11]} 28. f4 {[%emt 0:05:42]} Nc5 {[%emt 0:00:41]} 29. Rf3 {[%emt 0:00:16]} f6 {[%emt 0:01:18]} 30. fxe5 {[%emt 0:01:58]} dxe5 {[%emt 0:00:08]} 31. Kh1 {[%emt 0:00:20]} Kf7 {[%emt 0:01:44]} 32. Bg1 {[%emt 0:00:22]} Ne6 {[%emt 0:00:23]} 33. Rd3 {[%emt 0:00:54]} Rg5 {[%emt 0:02:34]} 34. Rd7 {[%emt 0:00:38]} Qc8 {[%emt 0:00:03]} 35. Qd6 {[%emt 0:02:29]} Qe8 {[%emt 0:00:12]} 36. Rb1 {[%emt 0:01:25]} Nf8 {[%emt 0:00:20]} 37. Rxe7+ {[%emt 0:00:44]} Qxe7 {[%emt 0:00:08]} 38. Qxe7+ {[%emt 0:00:02]} Kxe7 {[%emt 0:00:10]} 39. Bc5+ {[%emt 0:00:05]} 1-0

[Event "3rd Memorial Warakomska 2019"]
[Site "Suwalki"]
[Date "2019.08.07"]
[Round "4.19"]
[White "Walter, Szymon"]
[Black "Warakomski, Tomasz"]
[Result "1/2-1/2"]
[ECO "C41"]
[WhiteElo "2314"]
[BlackElo "2497"]
[Annotator "ChessBase"]
[PlyCount "30"]
[EventDate "2019.08.05"]
[EventType "swiss"]
[EventCountry "POL"]
[SourceTitle "playchess.com"]
[Source "ChessBase"]
[SourceQuality "1"]
[TimeControl "40/5400+30:1800+30"]

1. e4 {[%emt 0:00:00]} d6 {[%emt 0:00:00]} 2. d4 {[%emt 0:00:23]} Nf6 {[%emt 0:00:00]} 3. Nc3 {[%emt 0:00:10]} e5 {[%emt 0:00:00]} 4. Nf3 {[%emt 0:01:37]} Nbd7 {[%emt 0:00:00]} 5. Rg1 {[%emt 0:05:26]} c6 {[%emt 0:13:12]} 6. g4 {[%emt 0:04:02]} exd4 {[%emt 0:08:13]} 7. Nxd4 {[%emt 0:05:45]} Ne5 {[%emt 0:02:28]} 8. g5 {[%emt 0:10:30]} Nfg4 {[%emt 0:00:04]} 9. Be2 {[%emt 0:46:01]} Qb6 {[%emt 0:00:32]} 10. Rg2 {[%emt 0:00:55]} h5 {[%emt 0:27:04]} 11. f3 {[%emt 0:04:30]} g6 {[%emt 0:08:32]} 12. Na4 {[%emt 0:10:16]} Qa5+ {[%emt 0:01:43]} 13. Nc3 {[%emt 0:00:24]} Qb6 {[%emt 0:02:07]} 14. Na4 {[%emt 0:01:29]} Qa5+ {[%emt 0:00:26]} 15. Nc3 {[%emt 0:00:06]} Qb6 {[%emt 0:01:25]} 1/2-1/2

[Event "3rd Memorial Warakomska 2019"]
[Site "Suwalki"]
[Date "2019.08.07"]
[Round "4.20"]
[White "Koziol, Kamil"]
[Black "Skawinski, Arkadiusz"]
[Result "1/2-1/2"]
[ECO "C88"]
[WhiteElo "2307"]
[BlackElo "2398"]
[Annotator "NA"]
[PlyCount "59"]
[EventDate "2019.08.05"]
[EventType "swiss"]
[EventCountry "POL"]
[SourceTitle "playchess.com"]
[Source "ChessBase"]
[SourceQuality "1"]
[TimeControl "40/5400+30:1800+30"]

1. e4 {[%emt 0:00:00]} e5 {[%emt 0:03:37]} 2. Nf3 {[%emt 0:00:00]} Nc6 {[%emt 0:00:04]} 3. Bb5 {[%emt 0:00:00]} a6 {[%emt 0:00:09]} 4. Ba4 {[%emt 0:00:10]} Nf6 {[%emt 0:01:34]} 5. O-O {[%emt 0:00:42]} Be7 {[%emt 0:00:14]} 6. Re1 {[%emt 0:00:35]} b5 {[%emt 0:00:12]} 7. Bb3 {[%emt 0:00:08]} O-O {[%emt 0:00:18]} 8. a4 {[%emt 0:00:58]} b4 {[%emt 0:00:08]} 9. d4 {[%emt 0:00:29]} d6 {[%emt 0:00:08]} 10. dxe5 {[%emt 0:00:23]} dxe5 {[%emt 0:00:04]} 11. Nbd2 {[%emt 0:00:44]} Bc5 {[%emt 0:00:06]} 12. a5 {[%emt 0:00:45]} h6 {[%emt 0:04:50]} 13. h3 {[%emt 0:00:40]} Qe7 {[%emt 0:00:04]} 14. Qe2 {[%emt 0:00:23]} Rd8 {[%emt 0:00:50]} 15. Bc4 {[%emt 0:08:24]} Rd6 {[%emt 0:08:15]} 16. Nb3 {[%emt 0:07:19]} Ba7 {[%emt 0:03:39]} 17. c3 {[%emt 0:05:51]} Rb8 {[%emt 0:04:26]} 18. Kh2 {[%emt 0:23:36]} Be6 {[%emt 0:15:59]} 19. Nbd2 {[%emt 0:10:39]} Nh5 {[%emt 0:11:04]} 20. Bxe6 {[%emt 0:06:02]} Rxe6 {[%emt 0:02:32]} 21. Nc4 {[%emt 0:02:38]} Nf4 {[%emt 0:03:54]} 22. Qf1 {[%emt 0:03:40]} Rb5 {[%emt 0:02:23]} 23. g3 {[%emt 0:09:44]} Ng6 {[%emt 0:03:32]} 24. Be3 {[%emt 0:00:58]} bxc3 {[%emt 0:02:44]} 25. bxc3 {[%emt 0:01:14]} Bxe3 {[%emt 0:00:08]} 26. Rxe3 {[%emt 0:05:43]} Qc5 {[%emt 0:00:19]} 27. Nfd2 {[%emt 0:01:14]} Re8 {[%emt 0:04:22]} 28. Rd3 {[%emt 0:00:54]} Rd8 {[%emt 0:02:50]} 29. Kg2 {[%emt 0:01:16]} Nf8 {[%emt 0:06:50]} 30. Rxd8 {[%emt 0:00:54]} 1/2-1/2

[Event "3rd Memorial Warakomska 2019"]
[Site "Suwalki"]
[Date "2019.08.07"]
[Round "4.21"]
[White "Molenda, Marcin"]
[Black "Budrewicz, Krzysztof"]
[Result "0-1"]
[ECO "E63"]
[WhiteElo "2387"]
[BlackElo "2188"]
[Annotator "NA"]
[PlyCount "118"]
[EventDate "2019.08.05"]
[EventType "swiss"]
[EventCountry "POL"]
[SourceTitle "playchess.com"]
[Source "ChessBase"]
[SourceQuality "1"]
[TimeControl "40/5400+30:1800+30"]

1. d4 {[%emt 0:00:00]} d6 {[%emt 0:00:00]} 2. Nf3 {[%emt 0:00:00]} g6 {[%emt 0:00:00]} 3. g3 {[%emt 0:00:00]} Bg7 {[%emt 0:00:23]} 4. Bg2 {[%emt 0:00:03]} Nf6 {[%emt 0:01:29]} 5. O-O {[%emt 0:00:06]} O-O {[%emt 0:00:11]} 6. c4 {[%emt 0:00:05]} Nc6 {[%emt 0:03:16]} 7. Nc3 {[%emt 0:00:17]} a6 {[%emt 0:00:49]} 8. Bf4 {[%emt 0:03:29]} Bf5 {[%emt 0:01:48]} 9. Rc1 {[%emt 0:09:42]} h6 {[%emt 0:12:25]} 10. h3 {[%emt 0:06:06]} Ne4 {[%emt 0:01:58]} 11. Na4 {[%emt 0:07:44]} b5 {[%emt 0:26:00]} 12. cxb5 {[%emt 0:19:31]} axb5 {[%emt 0:00:12]} 13. Nc3 {[%emt 0:00:21]} Nxc3 {[%emt 0:02:47]} 14. Rxc3 {[%emt 0:00:21]} Be4 {[%emt 0:00:22]} 15. a3 {[%emt 0:00:59]} Ra4 {[%emt 0:04:09]} 16. e3 {[%emt 0:17:35]} e5 {[%emt 0:06:27]} 17. Nxe5 {[%emt 0:01:09]} Bxg2 {[%emt 0:00:27]} 18. Nxc6 {[%emt 0:00:34]} Bxc6 {[%emt 0:00:33]} 19. Rxc6 {[%emt 0:00:03]} g5 {[%emt 0:00:07]} 20. Qc2 {[%emt 0:00:28]} gxf4 {[%emt 0:00:26]} 21. gxf4 {[%emt 0:00:04]} d5 {[%emt 0:03:25]} 22. Rxc7 {[%emt 0:16:00]} Rc4 {[%emt 0:04:17]} 23. Rxc4 {[%emt 0:00:01]} bxc4 {[%emt 0:00:05]} 24. Qf5 {[%emt 0:00:33]} Qd6 {[%emt 0:00:19]} 25. Kh2 {[%emt 0:01:30]} Qe6 {[%emt 0:00:25]} 26. Qh5 {[%emt 0:00:55]} Rb8 {[%emt 0:00:50]} 27. Rg1 {[%emt 0:05:48]} Rxb2 {[%emt 0:00:24]} 28. Rg2 {[%emt 0:00:03]} c3 {[%emt 0:00:47]} 29. Qd1 {[%emt 0:01:10]} Qf5 {[%emt 0:00:07]} 30. Qg1 {[%emt 0:00:25]} Qh7 {[%emt 0:00:54]} 31. Qc1 {[%emt 0:01:00]} Rb3 {[%emt 0:01:08]} 32. a4 {[%emt 0:00:09]} Qb1 {[%emt 0:01:05]} 33. Rg1 {[%emt 0:00:39]} Qa2 {[%emt 0:07:40]} 34. Qf1 {[%emt 0:01:31]} Rb2 {[%emt 0:04:36]} 35. Rg2 {[%emt 0:00:01]} Qb1 {[%emt 0:01:48]} 36. Qa6 {[%emt 0:00:22]} Kh7 {[%emt 0:03:26]} 37. Qc8 {[%emt 0:01:05]} Qd3 {[%emt 0:02:09]} 38. Qc7 {[%emt 0:06:25]} Qf5 {[%emt 0:05:12]} 39. Qxc3 {[%emt 0:00:04]} Rc2 {[%emt 0:00:08]} 40. Qb3 {[%emt 0:00:00]} Rc1 {[%emt 0:00:00]} 41. Qa3 {[%emt 0:05:51]} Qb1 {[%emt 0:07:05]} 42. Kg3 {[%emt 0:01:56]} Rh1 {[%emt 0:00:32]} 43. Qd6 {[%emt 0:01:16]} Qf5 {[%emt 0:01:08]} 44. Rh2 {[%emt 0:00:08]} Ra1 {[%emt 0:00:59]} 45. Qa6 {[%emt 0:03:45]} Bf6 {[%emt 0:00:24]} 46. Qe2 {[%emt 0:00:22]} h5 {[%emt 0:00:45]} 47. Qb2 {[%emt 0:03:23]} Rb1 {[%emt 0:02:56]} 48. Qd2 {[%emt 0:02:06]} Qe4 {[%emt 0:01:24]} 49. Rg2 {[%emt 0:00:15]} Rh1 {[%emt 0:00:05]} 50. f3 {[%emt 0:00:21]} Qf5 {[%emt 0:01:38]} 51. Kf2 {[%emt 0:01:34]} Bh4+ {[%emt 0:00:21]} 52. Ke2 {[%emt 0:00:10]} Re1+ {[%emt 0:01:12]} 53. Qxe1 {[%emt 0:00:04]} Bxe1 {[%emt 0:00:04]} 54. Kxe1 {[%emt 0:00:02]} Qxh3 {[%emt 0:00:43]} 55. Kf2 {[%emt 0:00:06]} Qh4+ {[%emt 0:00:53]} 56. Rg3 {[%emt 0:00:05]} Qd8 {[%emt 0:00:22]} 57. Rg5 {[%emt 0:00:05]} Kh6 {[%emt 0:00:19]} 58. Kg3 {[%emt 0:01:01]} f6 {[%emt 0:00:17]} 59. Rf5 {[%emt 0:00:03]} Kg6 {[%emt 0:00:13]} 0-1